bitfinex-derivatives/quotes_SOLF0:USTF0_20250523
["timestamp","ask_amount","ask_price","bid_price","bid_amount"]
[1747997255770,0.03434052,185.97,185.93,0.03775054]
[1747997256277,5.3779,185.95,185.93,0.03775054]
[1747997257475,5.3776,185.96,185.93,0.03775054]
[1747997257668,0.03434052,185.97,185.7,11.70649251]
[1747997257875,118.47169151,185.96,185.78,5.27169151]
[1747997258179,118.47169151,185.96,185.82,5.3813]
[1747997258479,118.47169151,185.96,185.83,113.2]
[1747997258678,5.3803,185.87,185.83,113.2]
[1747997258873,118.47169151,185.96,185.83,113.2]
[1747997259182,0.03697571,185.91,185.88,0.0369588]
[1747997259584,0.03697571,185.91,185.81,113.2]
[1747997259781,5.27169151,185.9,185.75,8.35808767]
[1747997260084,5.27169151,185.87,185.77,113.2]
[1747997260580,0.03774028,185.84,185.8,0.03892583]
[1747997260982,5.3818,185.81,185.8,0.03892583]
[1747997263490,0.03774028,185.84,185.8,0.03892583]
[1747997264085,5.41864028,185.84,185.8,0.03892583]
[1747997264694,5.41864028,185.84,185.8,5.42072583]
[1747997264989,0.03774028,185.84,185.8,0.03892583]
[1747997265893,0.03774028,185.84,185.83,5.3812]
[1747997267792,4.028e-05,185.84,185.83,5.3812]
[1747997267996,3.83,185.97,185.82,215.46]
[1747997268191,5.622,185.97,185.82,215.46]
[1747997268387,5.3792,185.9,185.82,215.46]
[1747997268593,5.3792,185.9,185.86,5.3801]
[1747997268795,5.379,185.91,185.82,215.46]
[1747997268993,0.03416703,185.88,185.84,0.03564384]
[1747997269698,0.03416703,185.88,185.87,5.3799]
[1747997270094,0.03416703,185.88,185.84,0.03564384]
[1747997270407,0.03416703,185.88,185.84,5.41644384]
[1747997270697,5.41396703,185.88,185.84,5.41644384]
[1747997270898,5.41396703,185.88,185.85,5.3806]
[1747997272492,5.41396703,185.88,185.84,5.41654384]
[1747997272798,5.3801,185.87,185.84,5.41654384]
[1747997273004,5.3801,185.87,185.84,0.03564384]
[1747997273597,5.41396703,185.88,185.84,0.03564384]
[1747997274608,5.41396703,185.88,185.84,5.41654384]
[1747997275103,5.41396703,185.88,185.85,5.3806]
[1747997276004,5.3801,185.87,185.84,0.03564384]
[1747997276608,5.41396703,185.88,185.84,5.41644384]
[1747997277201,5.41396703,185.88,185.85,5.3806]
[1747997279015,5.41396703,185.88,185.84,5.41644384]
[1747997280216,5.41396703,185.88,185.85,5.3806]
[1747997280418,0.03416703,185.88,185.84,0.03564384]
[1747997280717,6.703e-05,185.88,185.84,0.03564384]
[1747997280913,3.6445,185.97,185.86,8.60741425]
[1747997281213,113.2,185.98,185.87,113.2]
[1747997281419,6.84946243,186.02,185.87,113.2]
[1747997281420,5.3765,186.0,185.88,102.22]
[1747997281615,6.84946243,186.02,185.88,102.22]
[1747997281821,0.03888666,185.97,185.93,0.03476568]
[1747997282015,0.03888666,185.97,185.93,113.13476568]
[1747997282521,0.03888666,185.97,185.93,118.51286568]
[1747997283023,5.41638666,185.97,185.93,118.51286568]
[1747997283223,0.03888666,185.97,185.93,118.51286568]
[1747997283425,0.03888666,185.97,185.93,113.13476568]
[1747997283723,5.378,185.94,185.93,0.03476568]
[1747997283917,0.03888666,185.97,185.93,0.03476568]
[1747997284117,5.378,185.95,185.93,0.03476568]
[1747997284316,0.03888666,185.97,185.93,0.03476568]
[1747997285022,0.03888666,185.97,185.93,5.41296568]
[1747997285224,0.03888666,185.97,185.93,0.03476568]
[1747997286222,5.378,185.94,185.93,0.03476568]
[1747997289224,0.03888666,185.97,185.93,0.03476568]
[1747997290521,0.03888666,185.97,185.94,5.3778]
[1747997290722,0.03888666,185.97,185.93,0.03476568]
[1747997291222,0.03888666,185.97,185.94,5.378]
[1747997292227,0.03888666,185.97,185.95,5.3777]
[1747997292521,0.03888666,185.97,185.93,0.03476568]
[1747997292728,5.3775,185.96,185.93,5.41286568]
[1747997294225,0.03888666,185.97,185.93,0.03476568]
[1747997294226,5.3778,185.95,185.93,0.03476568]
[1747997294524,0.03888666,185.97,185.93,0.03476568]
[1747997295115,0.03888666,185.97,185.95,5.3777]
[1747997295317,0.03888666,185.97,185.93,0.03476568]
[1747997297029,0.03888666,185.97,185.94,5.378]
[1747997297330,0.03888666,185.97,185.93,0.03476568]
[1747997297727,0.03888666,185.97,185.96,5.3775]
[1747997303833,5.376,186.02,185.98,5.3766]
[1747997304134,113.04,186.09,185.98,113.04]
[1747997304331,113.04,186.09,185.99,102.18]
[1747997304535,113.04,186.09,185.99,106.0548]
[1747997304740,178.94676243,186.11,185.99,106.0548]
[1747997304940,0.03512752,186.07,186.03,0.03952487]
[1747997305140,0.03512752,186.07,186.04,113.04]
[1747997306032,5.3748,186.06,186.04,113.04]
[1747997306334,5.40952752,186.07,186.04,118.4151]
[1747997306940,0.03512752,186.07,186.05,5.3749]
[1747997307140,0.03512752,186.07,186.04,113.04]
[1747997307530,0.03512752,186.07,186.05,5.3748]
[1747997308236,5.40942752,186.07,186.05,5.3748]
[1747997308536,5.40942752,186.07,186.04,118.415]
[1747997309339,0.03512752,186.07,186.03,0.03952487]
[1747997309937,5.3749,186.05,186.03,0.03952487]
[1747997310138,0.03512752,186.07,186.03,0.03952487]
[1747997310539,5.3749,186.06,186.03,0.03952487]
[1747997311536,5.3749,186.06,186.03,5.41482487]
[1747997311843,0.03512752,186.07,186.03,0.03952487]
[1747997312643,0.03512752,186.07,186.04,5.26732156]
[1747997313547,0.03512752,186.07,186.06,5.3746]
[1747997315550,112.88,186.15,186.04,5.26732156]
[1747997315845,3.7286,186.18,186.07,5.26732156]
[1747997316042,3.7286,186.18,186.09,5.3735]
[1747997316439,0.03683989,186.15,186.12,0.03535809]
[1747997317144,5.40903989,186.15,186.12,5.40815809]
[1747997317338,0.03683989,186.15,186.12,0.03535809]
[1747997317646,5.40893989,186.15,186.12,0.03535809]
[1747997317847,0.03683989,186.15,186.12,0.03535809]
[1747997319250,5.3725,186.14,186.12,0.03535809]
[1747997320439,0.03683989,186.15,186.12,0.03535809]
[1747997320440,5.40883989,186.15,186.12,5.40805809]
[1747997320636,0.03683989,186.15,186.12,0.03535809]
[1747997321249,5.3725,186.14,186.12,0.03535809]
[1747997321451,0.03683989,186.15,186.12,0.03535809]
[1747997321945,5.3726,186.13,186.12,0.03535809]
[1747997323843,0.03683989,186.15,70.705,52.93811608]
[1747997324056,118.12732156,186.19,70.705,52.93811608]
[1747997324057,5.26732156,186.16,186.05,118.2148]
[1747997324246,1.9381,186.15,186.05,112.84]
[1747997324651,5.3745,186.07,186.05,112.84]
[1747997325050,0.03667527,186.08,186.05,112.84]
[1747997325251,5.3743,186.07,186.05,112.84]
[1747997326050,5.3743,186.07,186.05,118.2149]
[1747997326353,5.3743,186.07,186.05,112.84]
[1747997326651,5.3746,186.06,186.05,112.84]
[1747997327244,5.3743,186.07,186.05,112.84]
[1747997327445,0.03667527,186.08,186.05,112.84]
[1747997328454,5.3745,186.07,186.05,112.84]
[1747997329453,0.03667527,186.08,186.05,112.84]
[1747997329854,0.03667527,186.08,186.06,5.3746]
[1747997330247,0.03667527,186.08,186.05,112.84]
[1747997330555,5.3718,186.16,186.05,118.10732156]
[1747997330757,5.3718,186.16,186.08,5.26732156]
[1747997330942,5.3718,186.16,186.09,102.1]
[1747997331148,5.3718,186.16,186.1,112.84]
[1747997331462,0.03499387,186.15,186.11,0.03872707]
[1747997332356,0.03499387,186.15,186.12,5.3726]
[1747997332560,5.40699387,186.15,186.12,5.3726]
[1747997332857,0.03499387,186.15,186.12,5.3726]
[1747997333067,0.03499387,186.15,186.11,0.03872707]
[1747997333558,0.03499387,186.15,186.13,5.3723]
[1747997334154,0.03499387,186.15,186.11,0.03872707]
[1747997334759,0.03499387,186.15,186.13,5.3724]
[1747997336465,0.03499387,186.15,186.11,0.03872707]
[1747997336466,5.40699387,186.15,186.12,5.3728]
[1747997337360,0.03499387,186.15,186.13,5.3725]
[1747997337761,0.03499387,186.15,186.11,0.03872707]
[1747997338057,0.03499387,186.15,186.14,5.3723]
[1747997338458,0.03499387,186.15,186.13,5.3725]
[1747997338659,0.03499387,186.15,186.11,0.03872707]
[1747997339660,0.03499387,186.15,186.14,5.3723]
[1747997339863,1.8018,186.24,186.11,5.30604863]
[1747997340063,1.8018,186.24,186.11,5.26732156]
[1747997340265,5.3712,186.18,186.15,5.3718]
[1747997340462,1.8018,186.24,186.15,5.3718]
[1747997340663,1.8018,186.24,186.05,4.19122605]
[1747997340864,5.3717,186.16,186.13,5.4095988]
[1747997341065,5.3717,186.16,186.13,0.0370988]
[1747997342060,0.039555,186.17,186.13,0.0370988]
[1747997342061,5.372,186.15,186.13,0.0370988]
[1747997344361,5.3723,186.14,186.13,0.0370988]
[1747997346469,5.3723,186.14,186.09,5.3735]
[1747997346470,112.68,186.15,186.04,4.19122605]
[1747997346865,5.3726,186.13,186.1,5.3732]
[1747997347159,114.5961,186.16,186.1,5.3732]
[1747997347360,0.04068378,186.15,186.11,0.04007939]
[1747997348871,5.3725,186.14,186.11,0.04007939]
[1747997349171,0.04068378,186.15,186.11,0.04007939]
[1747997350372,5.3723,186.14,186.11,5.41297939]
[1747997350568,0.04068378,186.15,186.11,0.04007939]
[1747997350873,5.41288378,186.15,186.11,5.41307939]
[1747997351069,0.04068378,186.15,186.11,0.04007939]
[1747997351961,5.3728,186.12,186.11,0.04007939]
[1747997353072,5.3728,186.13,186.11,0.04007939]
[1747997353774,5.3728,186.12,186.11,0.04007939]
[1747997376087,5.3725,186.14,186.11,0.04007939]
[1747997376274,174.04068378,186.15,186.11,0.04007939]
[1747997377081,5.3728,186.12,186.11,0.04007939]
[1747997393696,5.3728,186.12,186.11,7.939e-05]
[1747997397995,5.3749,186.05,186.04,4.19122605]
[1747997398203,5.3749,186.05,186.04,2.605e-05]
[1747997401498,5.3752,186.04,186.03,0.0372607]
[1747997403905,4.98562369,186.06,186.03,0.0372607]
[1747997404203,4.98562369,186.06,186.03,5.4126607]
[1747997404400,4.98562369,186.06,186.03,0.0372607]
[1747997405408,0.03886126,186.06,186.03,0.0372607]
[1747997405606,5.41346126,186.06,186.03,0.0372607]
[1747997405905,0.03886126,186.06,186.03,0.0372607]
[1747997406207,5.41356126,186.06,186.03,0.0372607]
[1747997406506,5.41356126,186.06,186.03,5.4126607]
[1747997406801,5.3749,186.05,186.03,5.4126607]
[1747997407706,5.41346126,186.06,186.03,5.4126607]
[1747997408914,5.3749,186.05,186.03,0.0372607]
[1747997409512,5.41346126,186.06,186.03,5.4126607]
[1747997409705,0.03886126,186.06,186.03,0.0372607]
[1747997409902,0.03886126,186.06,186.04,7.11817505]
[1747997410119,4.94676243,186.14,186.08,5.3738]
[1747997410408,4.94676243,186.14,186.06,112.42]
[1747997411104,0.03884861,186.12,186.08,0.03694765]
[1747997411311,5.3732,186.11,186.08,0.03694765]
[1747997411816,5.3732,186.11,186.08,5.41094765]
[1747997412304,0.03884861,186.12,186.08,0.03694765]
[1747997412909,5.3736,186.1,186.08,0.03694765]
[1747997413621,5.3732,186.11,186.08,0.03694765]
[1747997414617,5.3732,186.11,186.08,5.41094765]
[1747997415214,0.03884861,186.12,186.08,0.03694765]
[1747997415615,5.3732,186.11,186.08,0.03694765]
[1747997416820,5.3734,186.1,186.08,0.03694765]
[1747997417222,0.03884861,186.12,186.08,0.03694765]
[1747997417417,5.3732,186.11,186.08,0.03694765]
[1747997417717,5.3732,186.11,186.08,5.41094765]
[1747997418113,5.41174861,186.12,186.08,0.03694765]
[1747997418517,5.41174861,186.12,186.08,5.41074765]
[1747997418818,0.03884861,186.12,186.08,0.03694765]
[1747997419118,0.03884861,186.12,186.1,5.3732]
[1747997419519,0.03884861,186.12,186.08,0.03694765]
[1747997419714,0.03884861,186.12,186.09,5.3736]
[1747997419926,5.41174861,186.12,186.09,5.3736]
[1747997420315,0.03884861,186.12,186.1,5.3734]
[1747997420717,0.03884861,186.12,186.08,0.03694765]
[1747997421622,5.41194861,186.12,186.09,5.3736]
[1747997422218,0.03884861,186.12,186.1,5.3733]
[1747997422513,0.03884861,186.12,186.08,0.03694765]
[1747997424114,5.3737,186.09,186.08,0.03694765]
[1747997428122,5.3735,186.1,186.08,0.03694765]
[1747997428926,5.3737,186.09,186.08,0.03694765]
[1747997429831,5.3735,186.1,186.08,0.03694765]
[1747997430328,112.4,186.11,186.08,0.03694765]
[1747997430631,5.3734,186.1,186.08,0.03694765]
[1747997431732,5.3734,186.1,186.08,5.41094765]
[1747997431922,5.3737,186.09,186.08,0.03694765]
[1747997441347,5.3735,186.1,186.08,0.03694765]
[1747997441742,112.4,186.11,186.08,0.03694765]
[1747997441942,5.41184861,186.12,186.08,0.03694765]
[1747997442447,5.41184861,186.12,186.09,5.3735]
[1747997442748,5.41184861,186.12,186.08,0.03694765]
[1747997442749,0.03884861,186.12,186.08,0.03694765]
[1747997443049,5.41174861,186.12,186.09,5.3734]
[1747997443647,5.41174861,186.12,186.1,5.3733]
[1747997443849,0.03884861,186.12,186.08,0.03694765]
[1747997444736,0.03884861,186.12,186.1,5.3732]
[1747997445851,0.03884861,186.12,186.08,0.03694765]
[1747997446454,5.3737,186.09,186.08,0.03694765]
[1747997449543,5.3735,186.1,186.08,0.03694765]
[1747997450152,4.94676243,186.11,186.08,0.03694765]
[1747997450852,5.3737,186.09,186.08,0.03694765]
[1747997452456,0.03884861,186.12,186.08,0.03694765]
[1747997452942,0.03884861,186.12,186.09,112.24]
[1747997453143,4.94676243,186.14,186.09,119.39497505]
[1747997453350,4.94676243,186.14,186.1,1.8435]
[1747997453652,4.94676243,186.14,186.13,5.3726]
[1747997454854,0.03441127,186.15,186.14,5.3723]
[1747997455252,8.79096243,186.23,186.2,5.3704]
[1747997455657,8.79096243,186.23,186.14,112.24]
[1747997456159,4.94676243,186.23,186.16,0.04022303]
[1747997456453,4.94676243,186.23,186.2,5.3705]
[1747997456954,10.31646243,186.23,186.16,0.04022303]
[1747997457154,10.31646243,186.23,186.19,5.3706]
[1747997457351,5.3695,186.24,186.16,0.04022303]
[1747997457545,112.22,186.26,186.16,0.04022303]
[1747997457743,4.94676243,186.27,186.18,5.26917505]
[1747997458050,4.94676243,186.27,186.26,5.3688]
[1747997458250,4.94676243,186.27,186.21,0.03793287]
[1747997459152,4.94676243,186.27,186.24,5.3694]
[1747997459353,4.94676243,186.27,186.21,0.03793287]
[1747997459553,10.31536243,186.27,186.21,0.03793287]
[1747997459858,4.94676243,186.27,186.21,117.60813287]
[1747997460046,5.369,186.26,186.21,112.23793287]
[1747997460246,4.94676243,186.27,186.21,112.23793287]
[1747997460849,1.9234,186.31,186.21,112.23793287]
[1747997460850,1.9234,186.31,186.21,114.19643287]
[1747997461350,5.3694,186.24,186.21,114.19643287]
[1747997461548,1.9234,186.31,186.21,7.36663287]
[1747997461749,5.369,186.26,186.21,7.36663287]
[1747997461950,1.9234,186.31,186.21,5.40813287]
[1747997462151,1.857,186.3,186.22,5.3699]
[1747997462562,1.857,186.3,186.21,0.03793287]
[1747997463259,1.857,186.3,186.21,5.40803287]
[1747997463759,1.857,186.3,186.21,0.03793287]
[1747997464257,112.18,186.29,186.21,0.03793287]
[1747997464461,112.18,186.29,186.21,5.40813287]
[1747997465262,5.369,186.26,186.21,5.40813287]
[1747997465463,112.18,186.29,186.21,5.40813287]
[1747997465964,5.369,186.26,186.21,5.40813287]
[1747997466154,5.369,186.26,186.22,5.3698]
[1747997466359,112.18,186.29,186.21,0.03793287]
[1747997466558,5.3683,186.28,186.21,0.03793287]
[1747997466865,112.18,186.29,186.25,5.3689]
[1747997467066,112.18,186.29,186.25,0.03390673]
[1747997467364,117.5479,186.29,186.26,5.3688]
[1747997467665,1.9234,186.31,186.26,5.3688]
[1747997467865,5.3676,186.31,186.26,5.3688]
[1747997468164,112.0,186.33,186.28,5.3682]
[1747997469059,5.3671,186.32,186.28,5.3682]
[1747997469261,112.0,186.33,186.29,5.3679]
[1747997469458,112.0,186.33,186.29,0.03894583]
[1747997471167,5.3676,186.31,186.29,0.03894583]
[1747997471870,112.0,186.33,186.29,0.03894583]
[1747997472171,1.8193,186.35,186.29,0.03894583]
[1747997472374,5.3666,186.34,186.3,5.3675]
[1747997472671,177.9236,186.4,186.29,0.03894583]
[1747997472672,3.9236,186.4,186.29,112.01894583]
[1747997473573,3.9236,186.4,186.29,117.38664583]
[1747997473971,5.3668,186.33,186.29,112.01894583]
[1747997474773,5.3671,186.32,186.29,112.01894583]
[1747997475173,177.9236,186.4,186.29,112.01894583]
[1747997475373,5.3673,186.32,186.29,112.01894583]
[1747997475576,5.3673,186.32,186.29,0.03894583]
[1747997476276,177.9236,186.4,186.29,0.03894583]
[1747997476573,177.9236,186.4,186.29,5.30812088]
[1747997476773,5.3661,186.36,186.32,5.3669]
[1747997476976,5.3661,186.36,186.32,5.40259317]
[1747997477274,5.3662,186.35,186.32,0.03569317]
[1747997477466,3.9236,186.4,186.32,0.03569317]
[1747997477872,5.3668,186.33,186.32,0.03569317]
[1747997480671,3.9236,186.4,186.32,0.03569317]
[1747997481876,5.3668,186.33,186.32,0.03569317]
[1747997483869,3.9236,186.4,186.32,0.03569317]
[1747997484374,5.3668,186.34,186.32,0.03569317]
[1747997484675,3.9236,186.4,186.32,0.03569317]
[1747997485180,3.9236,186.4,186.33,5.3667]
[1747997485364,1.9557,186.4,186.32,0.03569317]
[1747997485570,111.98,186.41,186.32,0.03569317]
[1747997485973,5.3656,186.38,186.34,5.3663]
[1747997486169,111.98,186.41,186.32,0.03569317]
[1747997486377,111.98,186.41,186.33,5.3667]
[1747997486578,111.98,186.41,186.32,0.03569317]
[1747997486876,111.98,186.41,186.33,5.3668]
[1747997487177,111.98,186.41,186.32,0.03569317]
[1747997487378,5.3662,186.35,186.32,5.40269317]
[1747997487570,111.98,186.41,186.32,5.40269317]
[1747997488177,111.98,186.41,186.32,0.03569317]
[1747997490076,5.3668,186.33,186.32,0.03569317]
[1747997491280,111.94,186.36,186.32,0.03569317]
[1747997491979,5.3667,186.34,186.32,0.03569317]
[1747997492679,111.94,186.36,186.32,0.03569317]
[1747997493079,5.3663,186.35,186.32,0.03569317]
[1747997493581,111.94,186.36,186.32,0.03569317]
[1747997494283,111.94,186.36,186.32,5.40269317]
[1747997495183,111.94,186.36,186.32,0.03569317]
[1747997495585,111.94,186.4,186.32,0.03569317]
[1747997497879,5.26917505,186.38,186.32,0.03569317]
[1747997498078,3.7698,186.37,186.32,0.03569317]
[1747997498283,5.3668,186.33,186.32,0.03569317]
[1747997498479,117.12917505,186.35,186.23,1.7966]
[1747997498687,5.26917505,186.32,186.22,121.43508377]
[1747997498985,5.26917505,186.29,186.22,4.20518377]
[1747997499282,111.86,186.28,186.22,4.20518377]
[1747997499480,111.90026169,186.27,186.23,0.03909163]
[1747997499883,5.3696,186.24,186.23,0.03909163]
[1747997504986,5.3696,186.24,186.23,9.163e-05]
[1747997505289,10.63877505,186.24,186.23,9.163e-05]
[1747997505989,5.3715,186.17,186.13,111.9]
[1747997506988,5.40807545,186.17,186.13,111.94037836]
[1747997507187,5.3717,186.16,186.13,111.94037836]
[1747997508290,0.03657545,186.17,186.13,0.04037836]
[1747997509192,5.3723,186.14,186.13,0.04037836]
[1747997513598,5.3721,186.15,186.13,0.04037836]
[1747997513991,111.9,186.16,186.13,0.04037836]
[1747997514197,117.2719,186.16,186.13,0.04037836]
[1747997515197,5.372,186.15,186.13,0.04037836]
[1747997515394,111.9,186.16,186.13,0.04037836]
[1747997515798,117.2719,186.16,186.13,0.04037836]
[1747997516290,111.9,186.16,186.13,0.04037836]
[1747997516484,111.9,186.16,186.13,5.41287836]
[1747997517496,111.9,186.16,186.14,5.3722]
[1747997518194,111.9,186.16,186.13,5.41287836]
[1747997518399,111.9,186.16,186.13,0.04037836]
[1747997518799,111.9,186.16,186.14,5.3723]
[1747997519396,111.9,186.16,186.13,0.04037836]
[1747997520599,117.2717,186.16,186.13,0.04037836]
[1747997520907,111.9,186.16,186.13,0.04037836]
[1747997523703,5.372,186.15,186.13,0.04037836]
[1747997525010,5.3723,186.14,186.13,0.04037836]
[1747997525210,111.9,186.16,186.13,0.04037836]
[1747997525610,5.3721,186.15,186.13,0.04037836]
[1747997526007,111.9,186.16,186.13,0.04037836]
[1747997526209,5.3723,186.14,186.13,0.04037836]
[1747997526505,111.9,186.16,186.13,0.04037836]
[1747997526913,5.3723,186.14,186.13,0.04037836]
[1747997530114,5.3741,186.08,186.04,115.5892]
[1747997530314,5.3741,186.08,186.04,111.94]
[1747997530508,117.20917505,186.11,186.0,111.94]
[1747997530715,3.8787,186.1,186.0,111.94]
[1747997531114,0.03504634,186.07,186.03,0.03775966]
[1747997532415,5.3752,186.04,186.03,0.03775966]
[1747997533423,5.375,186.05,186.03,0.03775966]
[1747997535519,5.3752,186.04,186.03,0.03775966]
[1747997536817,0.03504634,186.07,186.03,0.03775966]
[1747997537521,5.375,186.05,186.03,0.03775966]
[1747997537824,0.03504634,186.07,186.03,0.03775966]
[1747997538120,5.3752,186.04,186.03,0.03775966]
[1747997539524,5.375,186.05,186.03,0.03775966]
[1747997540125,5.3752,186.04,186.03,0.03775966]
[1747997541431,5.3749,186.05,186.03,0.03775966]
[1747997541723,0.03504634,186.07,186.03,0.03775966]
[1747997542622,5.3751,186.05,186.03,0.03775966]
[1747997543423,5.3752,186.04,186.03,0.03775966]
[1747997549730,5.3752,186.04,186.03,5.966e-05]
[1747997551833,5.3772,185.98,185.94,7.2203]
[1747997552536,5.3781,185.94,185.92,112.0]
[1747997552733,5.26917505,185.99,185.9,4.20518377]
[1747997552941,0.03849048,185.96,185.93,0.03436307]
[1747997553239,5.3781,185.94,185.93,0.03436307]
[1747997556240,112.02,185.95,185.93,0.03436307]
[1747997556737,0.03849048,185.96,185.93,0.03436307]
[1747997557541,5.41599048,185.96,185.93,0.03436307]
[1747997557740,0.03849048,185.96,185.93,0.03436307]
[1747997558343,5.3778,185.95,185.93,0.03436307]
[1747997558544,0.03849048,185.96,185.93,0.03436307]
[1747997561145,0.03849048,185.96,185.94,5.3781]
[1747997561347,0.03849048,185.96,185.93,0.03436307]
[1747997561846,0.03849048,185.96,185.95,5.3778]
[1747997563248,0.03849048,185.96,185.93,5.41246307]
[1747997563650,0.03849048,185.96,185.93,0.03436307]
[1747997564649,0.03849048,185.96,185.93,5.41256307]
[1747997565150,0.03849048,185.96,185.94,5.378]
[1747997566050,0.03849048,185.96,185.93,0.03436307]
[1747997566447,0.03849048,185.96,185.93,112.01436307]
[1747997566749,113.801,186.03,185.93,112.01436307]
[1747997566750,111.98,186.03,185.93,112.01436307]
[1747997566950,111.98,186.03,185.94,1.8384]
[1747997567151,5.3762,186.01,185.98,5.3768]
[1747997567649,0.03849414,186.01,185.98,0.0413287]
[1747997568246,5.3766,185.99,185.98,0.0413287]
[1747997573358,5.3764,186.0,185.98,0.0413287]
[1747997574059,5.3766,185.99,185.98,0.0413287]
[1747997574359,0.03849414,186.01,185.98,0.0413287]
[1747997574758,5.41459414,186.01,185.98,5.4180287]
[1747997574959,0.03849414,186.01,185.98,5.4180287]
[1747997575259,5.3763,186.0,185.98,0.0413287]
[1747997575858,5.41469414,186.01,185.98,5.4180287]
[1747997577661,5.3764,186.0,185.98,5.4180287]
[1747997578353,5.41459414,186.01,185.99,5.3766]
[1747997578552,5.41459414,186.01,185.98,0.0413287]
[1747997579161,5.41459414,186.01,185.98,5.4180287]
[1747997581363,0.03849414,186.01,186.0,5.3763]
[1747997583863,0.03849414,186.01,185.99,5.3765]
[1747997584162,0.03849414,186.01,185.98,0.0413287]
[1747997584667,0.03849414,186.01,185.99,5.3765]
[1747997584869,0.03849414,186.01,185.98,0.0413287]
[1747997585269,5.3766,185.99,185.98,0.0413287]
[1747997590673,5.3764,186.0,185.98,0.0413287]
[1747997591479,5.41479414,186.01,185.98,0.0413287]
[1747997591771,0.03849414,186.01,185.98,0.0413287]
[1747997592573,5.3765,186.0,185.98,0.0413287]
[1747997593370,5.3766,185.99,185.98,0.0413287]
[1747997594279,5.3764,186.0,185.98,0.0413287]
[1747997595274,0.03849414,186.01,185.98,5.4182287]
[1747997595571,0.03849414,186.01,185.98,0.0413287]
[1747997595876,5.41479414,186.01,185.98,0.0413287]
[1747997596676,5.41479414,186.01,185.98,5.4182287]
[1747997596980,5.3763,186.0,185.98,0.0413287]
[1747997598577,5.3766,185.99,185.98,0.0413287]
[1747997600575,0.03849414,186.01,185.98,0.0413287]
[1747997600977,0.03849414,186.01,186.0,5.3763]
[1747997606681,0.03849414,186.01,185.98,0.0413287]
[1747997606682,4.94676243,186.08,186.04,5.3749]
[1747997606992,4.94676243,186.08,186.02,111.88]
[1747997607786,0.03683123,186.07,186.05,5.3748]
[1747997608788,0.03683123,186.07,186.06,5.3746]
[1747997609587,0.03683123,186.07,186.05,5.3748]
[1747997611288,0.03683123,186.07,186.06,5.3746]
[1747997613885,0.03683123,186.07,186.03,0.03463782]
[1747997614187,5.3752,186.04,186.03,0.03463782]
[1747997615087,111.89683123,186.07,186.02,4.20518377]
[1747997615282,5.3754,186.03,186.02,4.20518377]
[1747997617292,5.3757,186.02,186.01,0.03805983]
[1747997619093,5.3756,186.03,186.01,0.03805983]
[1747997619394,111.89683123,186.07,186.01,0.03805983]
[1747997620787,5.3756,186.03,186.01,0.03805983]
[1747997621288,5.3749,186.05,186.02,5.3757]
[1747997621589,111.89683123,186.07,186.01,0.03805983]
[1747997621993,5.3757,186.03,186.01,0.03805983]
[1747997622291,111.89683123,186.07,186.01,0.03805983]
[1747997622687,5.3756,186.03,186.01,0.03805983]
[1747997623191,5.3757,186.02,186.01,0.03805983]
[1747997625697,5.3757,186.02,186.01,5.983e-05]
[1747997625990,117.1557,186.02,186.01,5.983e-05]
[1747997629493,5.3757,186.02,186.01,5.983e-05]
[1747997642307,174.0,186.05,185.92,111.78]
[1747997642308,5.26917505,186.03,185.92,111.78]
[1747997642503,5.6318,186.02,185.92,111.78]
[1747997642704,111.8,186.01,185.91,1.9191]
[1747997643010,5.3777,185.96,185.91,1.9191]
[1747997643403,0.03842306,185.95,185.92,0.03458491]
[1747997643607,5.3783,185.94,185.92,0.03458491]
[1747997643814,0.03842306,185.95,185.92,0.03458491]
[1747997644813,0.03842306,185.95,185.93,5.3781]
[1747997646015,5.41622306,185.95,185.92,5.41308491]
[1747997647611,5.3781,185.94,185.92,5.41308491]
[1747997648313,5.41632306,185.95,185.92,5.41308491]
[1747997652723,5.378,185.94,185.92,5.41308491]
[1747997653219,0.03842306,185.95,185.92,5.41308491]
[1747997653419,5.41632306,185.95,185.92,5.41308491]
[1747997655218,5.41632306,185.95,185.93,5.3783]
[1747997656421,0.03842306,185.95,185.92,0.03458491]
[1747997657125,5.3783,185.93,185.92,0.03458491]
[1747997657823,0.03842306,185.95,185.92,0.03458491]
[1747997658220,5.3768,185.99,185.92,0.03458491]